Cogmind - Beta 13 @@@ ROGUE MODE // 2024.07.12 @ 21:13:26 Player: Annull999 Result: Destroyed by G-47 Trooper with Particle Gun Performance ------------- Evolutions (2) 1000 Regions Visited (5) 1000 Robots Destroyed (47) 235 Value Destroyed (1175) 1175 Prototype IDs (0) 0 Alien Tech Used (0) 0 Bonus (42) 42 TOTAL SCORE: 3452 Bonus ------- High Alert Combat Kills 42 Cogmind --------- Core Integrity 0/550 Matter 132/300 Energy 81/100 System Corruption 0% Temperature Cool (27) Movement Treading (240) Ox1 Location -8/Materials Parts ------- > --- POWER (1) -------- (None) > --- PROPULSION (3) --- Light Treads > --- UTILITY (5) ------ Large Storage Unit Targeting Computer Hacking Suite > --- WEAPON (2) ------- Shock Rifle > --- INVENTORY (15) --- Large Storage Unit Experimental Sensor Array Hacking Suite Trap Extractor (0/4) Mining Laser Peak State ------------ > --- POWER ------------ Improved Ion Engine > --- PROPULSION ------- Compact Wheel Compact Wheel Compact Wheel > --- UTILITY ---------- Large Storage Unit Targeting Computer Hacking Suite Hacking Suite Hacking Suite > --- WEAPON ----------- Beam Cannon Beam Cannon > --- INVENTORY -------- Light Treads Compact Wheel Armored Wheel Armored Wheel Heat Sink Large Storage Unit Experimental Sensor Array Hacking Suite Trap Extractor Grenade Launcher Rocket Launcher Mining Laser [Rating: 20] Favorites ----------- Power Improved Ion Engine Engine Improved Ion Engine Propulsion Compact Wheel Treads Light Treads Leg Aluminum Leg Wheel Compact Wheel Utility Large Storage Unit Device Heat Sink Storage Large Storage Unit Processor Targeting Computer Hackware Hacking Suite Protection Medium Armor Plating Weapon Beam Cannon Energy Gun EM Pulse Gun Energy Cannon Beam Cannon Ballistic Gun Light Assault Rifle Launcher Rocket Launcher Special Weapon Mining Laser Build | -11 -10 -10 -9 -9 -8 ------- Run | Yrd Mat Min Mat Min Mat Slots Evolved 4 | . . . 2 . 2 Power . | . . . . . . Propulsion 1 | . . . 1 . . Utility 3 | . . . 1 . 2 Weapon . | . . . . . . Parts Attached 57 | 9 10 2 19 1 16 Power 6 | 2 2 . 1 1 . Engine 6 | 2 2 . 1 1 . Core . | . . . . . . Reactor . | . . . . . . Propulsion 17 | 4 2 1 5 . 5 Treads 3 | . 1 1 . . 1 Leg 2 | 2 . . . . . Wheel 12 | 2 1 . 5 . 4 Hover . | . . . . . . Flight . | . . . . . . Utility 11 | 1 2 . 3 . 5 Device 2 | . . . . . 2 Storage 2 | 1 1 . . . . Processor 2 | . 1 . 1 . . Hackware 3 | . . . . . 3 Protection 2 | . . . 2 . . Artifact . | . . . . . . Weapon 23 | 2 4 1 10 . 6 Energy Gun 3 | 1 1 . . . 1 Energy Cannon 9 | . 2 . 6 . 1 Ballistic Gun 2 | 1 1 . . . . Ballistic Cannon . | . . . . . . Launcher 8 | . . 1 3 . 4 Special Weapon 1 | . . . 1 . . Impact Weapon . | . . . . . . Slashing Weapon . | . . . . . . Piercing Weapon . | . . . . . . Special Melee Weapon . | . . . . . . Unidentified Prototypes . | . . . . . . Parts Lost 21 | . 2 . 6 . 13 Power 3 | . 1 . 1 . 1 Propulsion 7 | . . . 2 . 5 Utility 5 | . . . 2 . 3 Weapon 6 | . 1 . 1 . 4 Highest Loss Streak 13 | . 2 . 3 . 13 To Critical Strikes . | . . . . . . Average Slot Usage (%) 97 | . 96 100 98 100 82 Engine 11 | . 14 14 10 11 6 Treads 11 | . 5 24 4 . . Leg 2 | . 16 . . . . Wheel 15 | . 5 3 28 33 22 Storage 12 | . 14 14 11 11 9 Processor 13 | . 11 14 13 22 11 Hackware 2 | . . . . . 22 Protection 2 | . . . 7 . . Energy Gun 1 | . 9 . . . . Energy Cannon 19 | . 5 25 19 22 7 Ballistic Gun 1 | . 12 . . . . Launcher 1 | . . 2 2 . 1 Naked Turns . | . . . . . . Heaviest Build 41 | 13 33 34 41 33 34 Greatest Support 48 | 20 20 40 48 48 48 Greatest Overweight (x) 3 | . 3 3 2 . 1 Average Overweight (x) . | . 2 . . . . Largest Inventory Capacity 15 | 8 15 15 15 15 15 Average Capacity 14 | 6 14 15 15 15 15 Most Carried 15 | 7 15 15 15 15 14 Average Carried 13 | 4 11 14 13 14 10 Final Capacity 15 | 8 15 15 15 15 15 Final Carried 15 | 6 15 15 15 15 5 Class Distribution -------------------- 91% | Mutant 8% | Hacker-Mutant Dominant Class ---------------- Mutant | -10/Materials Mutant | -10/Mines Mutant | -9/Materials Mutant | -9/Mines Hacker-Mutant | -8/Materials Resources | -11 -10 -10 -9 -9 -8 ----------- Run | Yrd Mat Min Mat Min Mat Matter Collected 759 | 179 226 25 235 . 94 Remotely . | . . . . . . Salvage Created 1171 | . 417 93 487 . 174 Parts 72 | . 20 3 30 . 19 Haulers Intercepted 1 | . 1 . . . . Recyclers Shooed 1 | . 1 . . . . Parts Field Recycled . | . . . . . . Retrieved Matter . | . . . . . . Parts Self-Destructed . | . . . . . . Prevented . | . . . . . . Kills | -11 -10 -10 -9 -9 -8 ------- Run | Yrd Mat Min Mat Min Mat Combat Hostiles Destroyed 40 | . 9 2 20 . 9 Guns 4 | . 4 . . . . Cannons 13 | . 2 2 9 . . AOE 23 | . 3 . 11 . 9 Classes Destroyed 7 | . 5 . 2 . . Worker 4 | . 1 . 2 . 1 Builder 1 | . . . 1 . . Hauler 1 | . 1 . . . . Recycler 1 | . 1 . . . . Swarmer 16 | . 3 . 7 . 6 Grunt 20 | . 6 2 9 . 3 Sentry 4 | . . . 4 . . Best Kill Streak 7 | . 7 2 6 . 4 Combat Bots Only 5 | . 5 2 5 . 3 Max Kills in Single Turn 4 | . 3 1 3 . 4 Gunslinging . | . . . . . . Exploded 3 | . 2 . 2 . 3 Melee . | . . . . . . Uniques/NPCs Destroyed . | . . . . . . Combat | -11 -10 -10 -9 -9 -8 -------- Run | Yrd Mat Min Mat Min Mat Hostile Shots Fired 282 | . 29 4 106 . 143 Missed 95 | . 10 4 31 . 50 Damage Taken 2681 | . 306 . 962 . 1413 Core 754 | . 77 . 127 . 550 Absorbed by Shields . | . . . . . . Core Remaining (%) 79 | 100 . 69 . 68 . Volleys Fired 73 | . 26 4 38 . 5 Largest 2 | . 2 2 2 . 1 Hottest 160 | . 120 120 160 . 33 Shots Fired 136 | . 50 8 73 . 5 Gun 42 | . 42 . . . . Cannon 76 | . 8 8 60 . . Launcher 16 | . . . 11 . 5 Special 2 | . . . 2 . . Kinetic 28 | . 28 . . . . Thermal 78 | . 8 8 62 . . Explosive 16 | . . . 11 . 5 Electromagnetic 14 | . 14 . . . . Robot Hit Streak 9 | . 6 8 9 . 1 Robot Miss Streak 3 | . 3 . 3 . 1 Penetration Max . | . . . . . . Secondary Targets . | . . . . . . Shots Hit Robots 82 | . 32 7 42 . 1 Core Hits 80 | . 21 3 35 . 21 Critical Kills . | . . . . . . Critical Parts Destroyed . | . . . . . . Critical Strikes . | . . . . . . Melee Attacks . | . . . . . . Impact . | . . . . . . Slashing . | . . . . . . Piercing . | . . . . . . Sneak Attacks . | . . . . . . Combat Hostiles . | . . . . . . Follow-up Attacks . | . . . . . . Damage Inflicted 3287 | . 620 121 1710 . 836 Guns 316 | . 316 . . . . Cannons 859 | . 71 121 667 . . Explosions 2088 | . 230 . 1039 . 819 Melee . | . . . . . . Ramming 24 | . 3 . 4 . 17 Kinetic 158 | . 158 . . . . Thermal 1089 | . 301 121 667 . . Explosive 1858 | . . . 1039 . 819 Electromagnetic 158 | . 158 . . . . Impact . | . . . . . . Slashing . | . . . . . . Piercing . | . . . . . . Highest Corruption 2 | . . . 2 2 . Average Corruption 1 | . . . 1 2 . Corruption Purged . | . . . . . . Corruption Blocked . | . . . . . . Effects 9 | . . . 8 1 . Message Errors 3 | . . . 3 . . Matter Fused 3 | . . . 3 . . Heat Flow Errors 2 | . . . 2 . . Data Loss (major) 1 | . . . . 1 . Overload Shots . | . . . . . . Overflow Damage 23 | . . . 12 . 11 Projectiles . | . . . . . . Explosions 23 | . . . 12 . 11 Melee . | . . . . . . Knockbacks . | . . . . . . Impact . | . . . . . . Kinetic . | . . . . . . Secondary . | . . . . . . Self-Inflicted Damage 140 | . 65 . 31 . 44 Shots 5 | . 2 . 1 . 2 Rammed 2 | . . . 1 . 1 Targets Rammed 3 | . 1 . 1 . 1 Kicked 1 | . 1 . . . . Crushed . | . . . . . . Highest Temperature 339 | . 201 189 339 . 11 Average Temperature 91 | . 59 84 104 . 11 Received Heat Transfer 1044 | . 126 . 270 . 648 Effects 4 | . . . 4 . . Interference 3 | . . . 3 . . Matter Decay 1 | . . . 1 . . Siege Activations . | . . . . . . Robots Corrupted . | . . . . . . Combat Hostiles . | . . . . . . Parts Fried . | . . . . . . Impact Corruptions . | . . . . . . Robots Melted . | . . . . . . Combat Hostiles . | . . . . . . Parts Melted 1 | . . . 1 . . Heat Transferred 2213 | . 548 259 1406 . . Parts Sabotaged . | . . . . . . Parts Stolen . | . . . . . . Parts Stripped . | . . . . . . Power Chain Reactions 2 | . 2 . . . . Alert | -11 -10 -10 -9 -9 -8 ------- Run | Yrd Mat Min Mat Min Mat Peak Influence 540 | . 230 154 540 178 457 Initial 178 | . . 89 . 178 68 Average 183 | . 142 62 354 178 250 Maximum Alert Level 2 | . 1 . 2 . 2 Low Security (%) 67 | 100 89 100 16 100 27 Level 1 18 | . 10 . 38 . 56 Level 2 14 | . . . 44 . 15 Level 3 . | . . . . . . Level 4 . | . . . . . . Level 5 . | . . . . . . High Security . | . . . . . . Max Security . | . . . . . . Squads Dispatched 10 | . 1 . 4 . 5 Investigation 6 | . . . 4 . 2 Extermination . | . . . . . . Reinforcement 4 | . 1 . . . 3 Assault . | . . . . . . Garrison . | . . . . . . Intercept . | . . . . . . Searches Triggered . | . . . . . . Construction Impeded . | . . . . . . Haulers Reinforced . | . . . . . . Active Scanning Responses . | . . . . . . Cargo Convoy Interrupts . | . . . . . . Stealth | -11 -10 -10 -9 -9 -8 --------- Run | Yrd Mat Min Mat Min Mat Distress Signals 5 | . 2 . . . 3 Communications Jammed . | . . . . . . Distress Signals . | . . . . . . Times Spotted 72 | . 12 2 25 . 33 Peak Tracking Total 13 | . 4 2 8 . 13 Tactical Retreats 3 | . . . . . 3 Traps | -11 -10 -10 -9 -9 -8 ------- Run | Yrd Mat Min Mat Min Mat Traps Triggered 2 | . . . . . 2 Indirectly . | . . . . . . Trap Hack Attempts . | . . . . . . Triggered . | . . . . . . Disarmed . | . . . . . . Reprogrammed . | . . . . . . Reused . | . . . . . . Traps Extracted . | . . . . . . Installed . | . . . . . . Triggered . | . . . . . . Machines | -11 -10 -10 -9 -9 -8 ---------- Run | Yrd Mat Min Mat Min Mat Machines Disabled 6 | . . 1 2 . 3 Max in Single Turn 2 | . . 1 2 . 1 Machines Repaired . | . . . . . . Machines Dismantled . | . . . . . . Machines Sabotaged . | . . . . . . Overloaded Fab Kills . | . . . . . . Hacking | -11 -10 -10 -9 -9 -8 --------- Run | Yrd Mat Min Mat Min Mat Machines Accessed 10 | . . . 7 . 3 Terminals 10 | . . . 7 . 3 Fabricators . | . . . . . . Repair Stations . | . . . . . . Recycling Units . | . . . . . . Scanalyzers . | . . . . . . Garrison Access . | . . . . . . Total Hacks 46 | . . . 30 . 16 Successful 23 | . . . 14 . 9 Failed 23 | . . . 16 . 7 Catastrophic 3 | . . . 3 . . Database Lockouts . | . . . . . . Manual 35 | . . . 22 . 13 Terminals 46 | . . . 30 . 16 Fabricators . | . . . . . . Repair Stations . | . . . . . . Recycling Units . | . . . . . . Scanalyzers . | . . . . . . Garrison Access . | . . . . . . Terminal Hacks 14 | . . . 9 . 5 Record 3 | . . . 1 . 2 Branch Access Points 1 | . . . 1 . . Terminal Index 2 | . . . 1 . 1 Garrison Index 1 | . . . . . 1 Alert Level 2 | . . . 1 . 1 Locate Traps 2 | . . . 2 . . Zone Layout 3 | . . . 3 . . Fabricator Hacks . | . . . . . . Repair Station Hacks . | . . . . . . Recycling Unit Hacks . | . . . . . . Scanalyzer . | . . . . . . Garrison Access Hacks . | . . . . . . Unauthorized Hacks 9 | . . . 5 . 4 Terminals 9 | . . . 5 . 4 Track 1 | . . . 1 . . Assimilate 3 | . . . 2 . 1 Botnet 4 | . . . 2 . 2 Operators 1 | . . . . . 1 Fabricators . | . . . . . . Repair Stations . | . . . . . . Recycling Units . | . . . . . . Scanalyzers . | . . . . . . Garrison Access . | . . . . . . Data Cores Recovered . | . . . . . . Used . | . . . . . . Hacking Detections 10 | . . . 7 . 3 Full Trace Events 8 | . . . 5 . 3 Feedback Events 2 | . . . 2 . . Corruption 2 | . . . 2 . . Feedback Blocked . | . . . . . . Robot Schematics Acquired . | . . . . . . Robots Built . | . . . . . . Authchips . | . . . . . . Time . | . . . . . . Total Robot Build Rating . | . . . . . . Part Schematics Acquired . | . . . . . . Parts Built . | . . . . . . Authchips . | . . . . . . Time . | . . . . . . Total Part Build Rating . | . . . . . . Parts Repaired . | . . . . . . Time . | . . . . . . Parts Recycled . | . . . . . . Recycled Matter . | . . . . . . Retrieved Matter . | . . . . . . Retrieved Components . | . . . . . . Parts Scanalyzed . | . . . . . . Part Schematics Acquired . | . . . . . . Parts Damaged . | . . . . . . Bothacking | -11 -10 -10 -9 -9 -8 ------------ Run | Yrd Mat Min Mat Min Mat Used RIF Installer . | . . . . . . Robots Hacked . | . . . . . . Non-combat . | . . . . . . Combat . | . . . . . . Robot Hacks Applied . | . . . . . . Relay Couplers Released . | . . . . . . Fabnet Peak Effective % . | . . . . . . Robots Rewired . | . . . . . . Allies Hacked . | . . . . . . Hacks Repelled . | . . . . . . Allies | -11 -10 -10 -9 -9 -8 -------- Run | Yrd Mat Min Mat Min Mat Total Allies 1 | . . 1 . . . Largest Group 1 | . . 1 . . . Highest-Rated Group 31 | . . 31 . . . Highest-Rated Ally 31 | . . 31 . . . Total Orders . | . . . . . . Ally Attacks . | . . . . . . Total Damage . | . . . . . . Kills . | . . . . . . Allies Corrupted . | . . . . . . Allies Melted . | . . . . . . Intel | -11 -10 -10 -9 -9 -8 ------- Run | Yrd Mat Min Mat Min Mat Robot Analysis Total . | . . . . . . Derelict Logs Recovered 1 | . . 1 . . . Drone Launches . | . . . . . . Drone Recoveries . | . . . . . . Exploration | -11 -10 -10 -9 -9 -8 ------------- Run | Yrd Mat Min Mat Min Mat Turns Passed 2498 | 59 338 951 732 181 237 Spaces Moved 1567 | 39 139 549 469 178 193 Core 10 | 10 . . . . . Treads 400 | . . 396 . . 4 Legs 67 | 14 53 . . . . Wheels 1090 | 15 86 153 469 178 189 Hover . | . . . . . . Flight . | . . . . . . Fastest Speed 50 | 50 120 125 100 100 90 Average Speed 123 | 94 145 150 105 100 102 Slowest Speed 240 | 120 190 160 130 100 240 Overloaded Moves . | . . . . . . Propulsion Burnouts . | . . . . . . Robots Hopped . | . . . . . . Cave-ins Triggered . | . . . . . . Exploration Rate (%) 37 | 4 15 88 45 38 33 Regions Visited 5 Branch Regions 2 Pre-discovered Areas . | . . . . . . Known Exits Taken 1 | . . . 1 . . Unknown Exits Taken 4 | 1 1 1 . 1 . Scrap Searched 1 | . . 1 . . . Spaces Dug 2 | . . . 2 . . Terrain Destroyed 71 | . 6 . 43 . 22 Melee . | . . . . . . Projectile 2 | . . . 2 . . AOE 69 | . 6 . 41 . 22 Terrain Rammed . | . . . . . . Walls Destroyed . | . . . . . . Machines Disabled . | . . . . . . Actions | -11 -10 -10 -9 -9 -8 --------- Run | Yrd Mat Min Mat Min Mat Total 1992 | 59 230 668 627 180 228 Wait 229 | . 25 108 87 . 9 Move 1562 | 38 138 548 468 177 193 Hop . | . . . . . . Pick Up 51 | 12 21 3 11 1 3 Fast Attach . | . . . . . . Attach 33 | 6 6 . 8 . 13 Detach . | . . . . . . Swap 24 | 3 4 2 11 1 3 Drop 17 | . 9 3 3 1 1 Fire 73 | . 26 4 38 . 5 Melee . | . . . . . . Ram 2 | . . . 1 . 1 Kick 1 | . 1 . . . . Crush . | . . . . . . Escape Stasis . | . . . . . . Rewire . | . . . . . . Trap . | . . . . . . Miscellaneous . | . . . . . . Route ------- -11/Scrapyard -10/Materials -10/Mines (discovered 2 exits: *Mat x2) -9/Materials (discovered 3 exits: *Mat / *Min x2) -9/Mines -8/Materials History --------- Turn | Location | Event 9 | -11/Scrapyard | Discovered new exit (range 15) 60 | -11/Scrapyard | Entered Materials 267 | -10/Materials | Discovered new exit (range 16) 314 | -10/Materials | Build established: Mutant 398 | -10/Materials | Entered Mines 584 | -10/Mines | Learned Materials stockpile data 605 | -10/Mines | Received a Mining Laser from a helpful Derelict 638 | -10/Mines | Received a Rocket Launcher from a helpful Derelict 925 | -10/Mines | Found a damaged Exp. Sensor Array with a note attached 929 | -10/Mines | Found Prototype Device 999 | -10/Mines | Discovered new exit (range 5) 1163 | -10/Mines | Discovered new exit (range 8) 1349 | -10/Mines | Entered Materials 1349 | -9/Materials | Evolved 2 slots: Propulsion x1, Utility x1 1555 | -9/Materials | Lost 3 parts (1p1n1u) 1589 | -9/Materials | Identified exit to Mines 1633 | -9/Materials | Discovered new exit (range 11) 2081 | -9/Materials | Entered Mines 2169 | -9/Mines | Discovered new exit (range 18) 2182 | -9/Mines | YI-UF0 nonchalantly dropped a Grenade Launcher on the ground 2262 | -9/Mines | Entered Materials 2262 | -8/Materials | Evolved 2 slots: Utility x2 2451 | -8/Materials | Core integrity fell below 50% 2486 | -8/Materials | Core integrity fell below 20% 2499 | -8/Materials | Destroyed by G-47 Trooper with Particle Gun Last Messages --------------- 02462_ S-10 Pest destroyed. 02462_ K-01 Serf destroyed. 02462_ S-10 Pest destroyed. 02462_ Rocket Launcher destroyed. 02462_ Destroyed Rocket Launcher. 02466_ Arm. Wheel destroyed. 02468_ Critical hit (Burn: +37). 02471_ Acquired Shock Rifle. 02472_ O-16 Technician: "IFF HANDSHAKE FAILED. SECURING TERMINAL." 02477_ O-16 Technician uses terminal to summon reinforcements. 02477_ ALERT: Hostiles spotted, dispatching reinforcements to Terminal M009. 02477_ O-16 Technician locks terminal. 02485_ Com. Wheel destroyed. 02486_ Slammed into K-01 Serf. 02486_ Hacking Suite destroyed. 02494_ G-47 Trooper destroyed. 02495_ Heat Sink destroyed. 02497_ Arm. Wheel destroyed. 02498_ Critical hit (Burn: +37). Map ----- +----------------------------------------------------+ | | | | | | | | | | | | | | | | | ?????????????????????????????????????????????????? | | ?????????????????????????????????????????????????? | | ?????????????????????????????????????????????????? | | ?????????????????????????????????????????????????? | | ?????????????????????????????????????????????????? | | ?????????????????????????????????????????????????? | | ??????????????????????#######????????????????????? | | ??????????????????????#= #????????????????????? | | ?????????????????????? #????????????????????? | | ??????????????????????? #????????????????????? | | ??????????????????????? Y ?????????????????????? | | ??????????????????????? ?????????????????????? | | ???????????????????????# #?????????????????????? | | ???????????????????????#ggg#?????????????????????? | | ???????????????????????# #???????? #??????????? | | ???????????????????##### #######a #?????????? | | ???????????????????#[[ #?????????? | | ???????????????????#[[ @ +?????????? | | ???????????????????#[[ l aa #?????????? | | ???????????????????#[[ ####### #?????????? | | ???????????????????#!! #??????# #??????????? | | ???????????????????#!! g #??????# #??????????? | | ????????????????######## g #??????# #??????????? | | ????????????????# [ #??????# +??????????? | | ????????????????# %g #??????# #??????????? | | ????????????????# Yg #??????# #??????????? | | ????????????????# ######### H#??????????? | | ????????????????# "" ## [ # #??????????? | | ???????????????##o "Y ## #??????????? | | ???????????????#T "" ## # ??????? | | ???????????????## r ## =*[%%= #???? | | ????????????????# / *%! # #???? | | ????????????????# ######## =# #????? #???? | | ????????????????# #??????#### ## ######/##### | | ???????????????# ?????????##### | | ???????????????#! ?????????????# %######/## | | ???????????????##!!!!#????????????# #??? # | | ????????????????######????????????# #? """ #+#/ | | ??????????????????????????????????# ## "R" # | | ??????????????????????????????????# ## " " # | | ??????????????????????????????????# ## # | | ??????????????????????????????????# ##! # | +----------------------------------------------------+ Best States ------------- Heat Dissipation 41 Energy Generation 12 Energy Capacity 265 Matter Stores 300 Matter Capacity 300 Sight Range 18 Terrain Scan Density 10 Armor Coverage 225 Evasion (%) 50 Targeting Accuracy 5 Recoil Reduction 2 Offensive Hacking 30 Item Schematics ----------------- None Robot Schematics ------------------ None Fabricated ------------ Nothing Alien Tech Used ----------------- None Achievements -------------- None Challenges ------------ None Game ------ Seed StoragePortableBuckler Manual? 0 Play Time 00:49:23 Cumulative 6.1 hours Start 2024.07.12 @ 11:38:48 End 2024.07.12 @ 21:13:26 Sessions 6 Manual Loads 0 Difficulty Rogue Special Mode None Game No. 11 Rogue 11 Adventurer 0 Explorer 0 Win Type - Total 0 Types 0/0/0/0/0/0/0/0/0 Lore% 5 Gallery% 9 Achievement% 9 Wizard Run 0 Options --------- Layout 0 ASCII 1 Keyboard 0 Movement Mouse Keybinds 0 Fullscreen 2 Font 18/TerminusBold Map View 76x50 Zoom Use 28% Tactical HUD 1 Map Filters NONE Filters NONE Steam 1 RUN: fc7723fb-b503-4790-abed-c8b7902c8d9d